bitfinex/quotes_SOLUSD_20250616
["timestamp","ask_amount","ask_price","bid_price","bid_amount"]
[1750036521987,34.1557083,151.48,151.47,2.74896533]
[1750036522708,41.01533144,151.48,151.47,2.74896533]
[1750036523324,40.7310083,151.48,151.47,2.74896533]
[1750036523685,41.01533144,151.48,151.47,2.74896533]
[1750036525791,26.0,151.45,151.38,18.64964886]
[1750036525995,5.0357083,151.43,151.38,23.68535716]
[1750036526203,5.0357083,151.42,151.37,26.0]
[1750036526397,34.1757083,151.41,151.37,18.64964886]
[1750036526594,6.8137,151.4,151.36,1.3702253]
[1750036526810,5.0357083,151.38,151.36,1.3702253]
[1750036527004,26.0,151.42,151.37,5.0357083]
[1750036527204,8.1588,151.44,151.37,5.0357083]
[1750036527205,6.5885,151.44,151.38,5.0357083]
[1750036527388,36.18,151.43,151.37,18.64964886]
[1750036527708,41.2157083,151.43,151.37,23.68535716]
[1750036528086,41.2157083,151.43,151.37,18.64964886]
[1750036528288,5.0357083,151.41,151.37,18.64964886]
[1750036528507,29.16,151.4,151.37,18.64964886]
[1750036529131,34.1957083,151.4,151.36,1.3702253]
[1750036529307,29.16,151.4,151.36,1.3702253]
[1750036529706,36.24,151.39,151.36,1.3702253]
[1750036529939,29.2,151.38,151.36,1.3702253]
[1750036531354,5.0357083,151.37,151.36,1.3702253]
[1750036532947,29.2,151.38,151.36,1.3702253]
[1750036533122,5.32003144,151.37,151.36,1.3702253]
[1750036533518,0.28432314,151.34,151.26,6.6902083]
[1750036533714,5.0357083,151.31,151.26,26.0]
[1750036534013,29.36,151.3,151.26,26.0]
[1750036534220,7.14,151.29,151.26,26.0]
[1750036534419,7.14,151.29,151.26,31.0357083]
[1750036534630,7.14,151.29,151.26,26.0]
[1750036534828,7.14,151.29,151.27,5.0357083]
[1750036535207,7.14,151.29,151.26,26.0]
[1750036535820,7.14,151.29,151.27,5.0357083]
[1750036536045,7.14,151.29,151.28,5.0357083]
[1750036536246,7.14,151.29,151.26,26.0]
[1750036536470,7.14,151.29,151.28,23.68535716]
[1750036536773,9.52579213,151.4,151.26,32.61107619]
[1750036536977,7.14,151.32,151.27,18.64964886]
[1750036537269,29.48,151.31,151.29,5.0357083]
[1750036537765,29.48,151.31,151.28,26.0]
[1750036537965,29.48,151.31,151.28,31.0357083]
[1750036538158,29.48,151.31,151.28,26.0]
[1750036538466,29.48,151.31,151.29,5.0357083]
[1750036538864,29.48,151.31,151.28,26.0]
[1750036539034,29.48,151.31,151.29,5.0357083]
[1750036539237,29.48,151.31,151.27,18.64964886]
[1750036539442,29.48,151.31,151.27,23.68535716]
[1750036540069,29.48,151.31,151.27,5.0357083]
[1750036541672,29.48,151.31,151.25,18.82964886]
[1750036541855,29.48,151.31,151.27,5.0357083]
[1750036542057,29.48,151.31,151.28,5.0357083]
[1750036542660,29.48,151.31,151.3,5.0357083]
[1750036542859,7.14,151.32,151.3,6.5930083]
[1750036543039,1.5443,151.41,151.32,18.64964886]
[1750036543242,5.0357083,151.37,151.32,5.0357083]
[1750036543462,7.14,151.38,151.32,5.0357083]
[1750036543664,5.0357083,151.36,151.31,5.0357083]
[1750036543961,29.48,151.35,151.31,5.0357083]
[1750036544781,29.48,151.35,151.32,5.0357083]
[1750036545072,29.48,151.35,151.33,5.0357083]
[1750036545556,29.48,151.35,151.31,5.0357083]
[1750036545557,34.5157083,151.35,151.31,5.0357083]
[1750036545756,29.48,151.35,151.31,5.0357083]
[1750036545981,5.0357083,151.34,151.3,1.5573]
[1750036546159,29.48,151.35,151.31,5.0357083]
[1750036546861,34.5157083,151.35,151.3,6.5930083]
[1750036547302,34.5157083,151.35,151.3,1.5573]
[1750036547576,5.0357083,151.34,151.3,1.5573]
[1750036548863,5.0357083,151.34,151.3,6.5930083]
[1750036549175,5.0357083,151.34,151.3,1.5573]
[1750036549359,5.0357083,151.31,151.26,12.7551083]
[1750036549551,29.42,151.3,151.26,6.5357083]
[1750036551359,29.42,151.3,151.26,1.5]
[1750036551680,34.4557083,151.3,151.26,1.5]
[1750036552256,29.42,151.3,151.26,6.5357083]
[1750036552679,29.42,151.3,151.26,1.5]
[1750036552887,34.4557083,151.3,151.26,1.5]
[1750036553103,5.0357083,151.29,151.25,0.18]
[1750036553261,7.14,151.28,151.25,5.2157083]
[1750036553462,29.34,151.27,151.25,5.2157083]
[1750036553960,29.34,151.27,151.25,0.18]
[1750036554153,29.34,151.27,151.26,5.0357083]
[1750036556192,29.34,151.27,151.25,0.18]
[1750036556391,7.14,151.28,151.26,5.0357083]
[1750036556686,36.42,151.28,151.26,5.0357083]
[1750036557266,36.42,151.28,151.25,0.18]
[1750036557468,36.42,151.28,151.25,5.2157083]
[1750036557764,36.42,151.28,151.25,0.18]
[1750036558099,36.42,151.28,151.27,5.0357083]
[1750036558674,36.44,151.28,151.27,5.0357083]
[1750036558870,7.14,151.28,151.26,5.0357083]
[1750036559071,7.14,151.28,151.27,5.0357083]
[1750036559270,36.44,151.28,151.26,5.0357083]
[1750036559482,36.44,151.28,151.27,5.0357083]
[1750036559892,36.44,151.28,151.25,18.82964886]
[1750036560199,36.44,151.28,151.25,0.18]
[1750036560498,36.44,151.28,151.26,5.0357083]
[1750036560712,36.44,151.28,151.25,5.2157083]
[1750036560886,41.4757083,151.28,151.25,0.18]
[1750036561266,36.44,151.28,151.25,0.18]
[1750036562514,7.14,151.28,151.26,5.0357083]
[1750036562813,29.26,151.27,151.25,5.2157083]
[1750036563470,29.26,151.27,151.25,0.18]
[1750036563807,29.26,151.27,151.25,5.2157083]
[1750036563980,7.14,151.28,151.25,0.18]
[1750036564176,29.26,151.27,151.25,5.2157083]
[1750036565281,29.26,151.27,151.26,5.0357083]
[1750036565482,29.26,151.27,151.25,5.2157083]
[1750036566121,29.26,151.27,151.26,5.0357083]
[1750036566324,6.4447,151.34,151.25,0.18]
[1750036566529,41.3757083,151.33,151.28,5.0357083]
[1750036566824,7.16,151.33,151.3,5.0357083]
[1750036567027,7.16,151.33,151.32,5.0357083]
[1750036567218,36.34,151.33,151.28,1.595]
[1750036567417,36.34,151.33,151.31,5.0357083]
[1750036567814,36.34,151.33,151.3,5.0357083]
[1750036568129,41.3757083,151.33,151.29,5.0357083]
[1750036568316,41.3757083,151.33,151.28,6.6307083]
[1750036568513,41.3757083,151.33,151.29,5.0357083]
[1750036568900,7.16,151.33,151.32,5.0357083]
[1750036569126,36.36,151.33,151.28,1.595]
[1750036569432,36.36,151.33,151.3,5.0357083]
[1750036570403,36.36,151.33,151.29,5.0357083]
[1750036570921,41.3957083,151.33,151.28,27.595]
[1750036571128,41.3957083,151.33,151.29,5.0357083]
[1750036571938,41.3957083,151.33,151.28,32.6307083]
[1750036572134,36.36,151.33,151.28,27.595]
[1750036572316,36.36,151.33,151.3,5.0357083]
[1750036572500,36.36,151.33,151.29,5.0357083]
[1750036572926,36.36,151.33,151.28,27.595]
[1750036573131,36.36,151.33,151.29,5.0357083]
[1750036574634,41.3957083,151.33,151.28,32.6307083]
[1750036574837,36.36,151.33,151.29,5.0357083]
[1750036575133,36.36,151.33,151.31,5.0357083]
[1750036575505,7.16,151.33,151.32,5.0357083]
[1750036575828,7.16,151.33,151.32,23.68535716]
[1750036576010,7.16,151.4,151.35,27.5702]
[1750036576344,29.12,151.39,151.37,5.0357083]
[1750036577219,29.12,151.39,151.38,5.0357083]
[1750036577439,7.16,151.4,151.38,5.0357083]
[1750036577752,7.16,151.4,151.39,5.0357083]
[1750036578728,7.16,151.4,151.39,23.68535716]
[1750036579741,7.16,151.4,151.35,1.5702]
[1750036579949,7.16,151.4,151.38,5.0357083]
[1750036580325,7.16,151.4,151.37,5.0357083]
[1750036581122,7.16,151.4,151.36,18.64964886]
[1750036581345,7.16,151.4,151.39,5.0357083]
[1750036584129,5.0357083,151.47,151.4,18.64964886]
[1750036584339,36.14,151.46,151.42,5.0357083]
[1750036584547,28.98,151.45,151.44,5.0357083]
[1750036584882,36.14,151.46,151.44,5.0357083]
[1750036585040,36.14,151.46,151.43,5.0357083]
[1750036585245,36.14,151.46,151.42,5.0357083]
[1750036585616,7.16,151.46,151.43,5.0357083]
[1750036585916,28.98,151.45,151.43,5.0357083]
[1750036586443,7.16,151.46,151.43,5.0357083]
[1750036586618,28.96,151.45,151.43,5.0357083]
[1750036587244,28.96,151.45,151.42,5.0357083]
[1750036588062,7.16,151.46,151.44,5.0357083]
[1750036588355,28.94,151.45,151.43,5.0357083]
[1750036588645,36.08,151.46,151.43,5.0357083]
[1750036589330,36.08,151.46,151.44,5.0357083]
[1750036589715,36.08,151.46,151.43,5.0357083]
[1750036590052,7.16,151.46,151.43,5.0357083]
[1750036590241,36.06,151.46,151.43,5.0357083]
[1750036590856,36.06,151.46,151.44,5.0357083]
[1750036591536,36.06,151.46,151.43,5.0357083]
[1750036592631,36.06,151.46,151.44,5.0357083]
[1750036593222,36.06,151.46,151.45,5.0357083]
[1750036593541,36.06,151.46,151.44,5.0357083]
[1750036594832,7.16,151.46,151.45,5.0357083]
[1750036595151,7.16,151.46,151.45,23.68535716]
[1750036597324,7.16,151.46,151.44,5.0357083]
[1750036598156,7.16,151.46,151.45,5.0357083]
[1750036599255,7.16,151.46,151.44,5.0357083]
[1750036599752,7.16,151.46,151.45,5.0357083]
[1750036602333,7.16,151.46,151.45,18.64964886]
[1750036602535,7.16,151.46,151.43,23.68535716]
[1750036602731,7.16,151.46,151.44,5.0357083]
[1750036603850,28.78,151.45,151.43,18.64964886]
[1750036604164,5.0357083,151.44,151.41,18.64964886]
[1750036604326,5.0357083,151.44,151.39,5.0357083]
[1750036604526,28.78,151.45,151.4,18.64964886]
[1750036604840,28.78,151.45,151.38,5.0357083]
[1750036605043,5.0357083,151.43,151.39,5.0357083]
[1750036605254,28.78,151.42,151.39,5.0357083]
[1750036605857,28.78,151.42,151.38,18.64964886]
[1750036606044,28.78,151.42,151.39,5.0357083]
[1750036609897,28.78,151.42,151.38,23.68535716]
[1750036610669,28.78,151.42,151.39,5.0357083]
[1750036610870,33.8157083,151.46,151.42,18.64964886]
[1750036611075,28.78,151.45,151.42,18.64964886]
[1750036611653,28.78,151.45,151.42,5.0357083]
[1750036611858,28.78,151.45,151.43,5.0357083]
[1750036612863,28.78,151.45,151.44,5.0357083]
[1750036613076,35.68,151.47,151.44,5.0357083]
[1750036613678,6.9,151.47,151.45,5.0357083]
[1750036613878,35.68,151.47,151.45,5.0357083]
[1750036614992,6.9,151.47,151.43,18.64964886]
[1750036615182,6.9,151.47,151.46,5.0357083]
[1750036619711,6.9,151.47,151.46,35.60779187]
[1750036619869,6.9,151.55,151.47,20.563072]
[1750036620206,28.78,151.54,151.52,5.0357083]
[1750036620973,28.78,151.54,151.51,5.0357083]
[1750036621176,28.78,151.54,151.43,1.6325]
[1750036621177,5.0357083,151.52,151.43,1.6325]
[1750036621390,5.0357083,151.49,151.44,5.0357083]
[1750036621566,33.8157083,151.48,151.44,18.64964886]
[1750036621781,28.78,151.47,151.45,5.0357083]
[1750036622308,33.8157083,151.47,151.43,18.64964886]
[1750036623392,5.0357083,151.46,151.41,5.0357083]
[1750036623700,5.0357083,151.46,151.42,18.64964886]
[1750036624975,11.8957083,151.46,151.42,18.64964886]
[1750036625378,11.8957083,151.46,151.43,5.0357083]
[1750036625379,6.86,151.46,151.43,5.0357083]
[1750036625780,6.86,151.46,151.42,5.0357083]
[1750036626774,11.8957083,151.46,151.41,23.68535716]
[1750036629299,5.0357083,151.45,151.4,23.68535716]
[1750036629481,5.0357083,151.43,151.36,18.64964886]
[1750036629795,28.78,151.42,151.38,5.0357083]
[1750036630101,28.78,151.42,151.39,5.0357083]
[1750036630780,28.78,151.42,151.36,44.64964886]
[1750036630974,28.78,151.42,151.38,5.0357083]
[1750036631194,6.86,151.46,151.41,5.0357083]
[1750036631497,5.0357083,151.44,151.4,23.68535716]
[1750036631700,5.0357083,151.43,151.38,5.0357083]
[1750036632181,5.0357083,151.43,151.39,5.0357083]
[1750036632385,5.0357083,151.43,151.38,23.68535716]
[1750036632983,5.0357083,151.42,151.37,31.0357083]
[1750036633184,5.0357083,151.42,151.37,5.0357083]
[1750036633388,28.78,151.41,151.38,5.0357083]
[1750036634499,28.78,151.41,151.39,5.0357083]
[1750036636997,28.78,151.41,151.4,5.0357083]
[1750036637903,28.78,151.41,151.39,5.0357083]
[1750036638108,28.78,151.41,151.38,5.0357083]
[1750036638279,33.8157083,151.41,151.36,18.64964886]
[1750036638479,33.8157083,151.41,151.37,5.0357083]
[1750036639012,28.78,151.41,151.38,5.0357083]
[1750036639709,28.78,151.41,151.37,5.0357083]
[1750036640597,28.78,151.41,151.38,5.0357083]
[1750036641414,33.8157083,151.41,151.36,18.64964886]
[1750036641607,5.0357083,151.4,151.36,5.0357083]
[1750036642601,5.0357083,151.4,151.35,27.5173]
[1750036642810,5.0357083,151.4,151.36,5.0357083]
[1750036643424,1.6445,151.44,151.39,5.0357083]
[1750036643601,5.0357083,151.45,151.4,5.0357083]
[1750036643787,28.76,151.43,151.4,5.0357083]
[1750036644186,28.76,151.43,151.39,5.0357083]
[1750036644420,33.7957083,151.43,151.39,5.0357083]
[1750036644599,28.76,151.43,151.39,5.0357083]
[1750036645014,179.86,151.46,151.36,18.64964886]
[1750036645015,5.0357083,151.45,151.4,5.0357083]
[1750036645313,28.76,151.45,151.42,5.0357083]
[1750036645518,6.86,151.46,151.43,5.0357083]
[1750036645714,35.62,151.46,151.43,5.0357083]
[1750036646613,6.86,151.46,151.43,5.0357083]
[1750036646815,35.62,151.46,151.43,5.0357083]
[1750036647797,6.86,151.46,151.43,5.0357083]
[1750036648122,35.62,151.46,151.43,5.0357083]
[1750036649416,28.76,151.45,151.44,5.0357083]
[1750036649997,35.62,151.46,151.44,5.0357083]
[1750036650497,6.86,151.46,151.44,5.0357083]
[1750036651907,6.86,151.46,151.45,5.0357083]
[1750036653017,6.86,151.46,151.43,18.64964886]
[1750036653195,6.86,151.46,151.43,23.68535716]
[1750036653393,6.86,151.46,151.42,31.0357083]
[1750036653616,6.86,151.46,151.43,5.0357083]
[1750036654799,6.86,151.46,151.44,5.0357083]
[1750036655309,6.86,151.46,151.42,26.0]
[1750036655509,6.86,151.46,151.39,5.0357083]
[1750036655510,5.0357083,151.44,151.39,5.0357083]
[1750036655711,28.76,151.43,151.4,18.64964886]
[1750036656122,28.76,151.43,151.41,5.0357083]
[1750036656492,28.76,151.43,151.4,5.0357083]
[1750036660003,28.76,151.43,151.39,23.68535716]
[1750036660612,28.76,151.43,151.4,5.0357083]
[1750036662824,28.76,151.43,151.39,18.64964886]
[1750036663029,28.76,151.43,151.4,5.0357083]
[1750036664026,28.76,151.43,151.41,5.0357083]
[1750036664909,28.76,151.43,151.39,18.64964886]
[1750036665112,28.76,151.43,151.4,5.0357083]
[1750036665903,33.7957083,151.43,151.38,31.0357083]
[1750036666220,13.4513,151.46,151.41,5.0357083]
[1750036666428,28.74,151.45,151.43,5.0357083]
[1750036666612,28.74,151.45,151.42,5.0357083]
[1750036667628,28.74,151.44,151.42,5.0357083]
[1750036668022,6.86,151.46,151.43,5.0357083]
[1750036668220,28.74,151.45,151.44,5.0357083]
[1750036668420,28.74,151.45,151.43,5.0357083]
[1750036669432,6.86,151.46,151.43,5.0357083]
[1750036669737,28.74,151.45,151.43,5.0357083]
[1750036669920,6.86,151.46,151.43,5.0357083]
[1750036670241,28.74,151.45,151.43,5.0357083]
[1750036670617,28.74,151.45,151.44,5.0357083]
[1750036670813,6.86,151.46,151.44,5.0357083]
[1750036671027,6.86,151.46,151.45,23.68535716]
[1750036672814,6.86,151.46,151.45,30.57251952]
[1750036673139,6.84,151.55,151.49,20.29434886]
[1750036673322,35.58,151.55,151.53,5.0357083]
[1750036673726,35.58,151.55,151.49,26.89512799]
[1750036673925,35.58,151.55,151.53,5.0357083]
[1750036674137,6.84,151.55,151.54,5.0357083]
[1750036674344,35.58,151.55,151.54,5.0357083]
[1750036674526,6.84,151.55,151.54,23.68535716]
[1750036676042,6.84,151.55,151.54,49.9696803]
[1750036677535,6.84,151.55,151.54,23.68535716]
[1750036677748,6.84,151.55,151.53,18.64964886]
[1750036679058,6.84,151.55,151.53,23.68535716]
[1750036681256,6.84,151.55,151.54,5.0357083]
[1750036682926,6.84,151.55,151.54,49.68535716]
[1750036684043,6.84,151.55,151.54,49.9696803]
[1750036684952,6.84,151.55,151.54,56.56859807]
[1750036685631,6.84,151.55,151.54,44.64964886]
[1750036685957,6.84,151.55,151.54,49.68535716]
[1750036687637,6.84,151.55,151.54,18.64964886]
[1750036687844,11.8757083,151.55,151.45,1.5703]
[1750036688050,6.84,151.55,151.49,18.64964886]
[1750036688238,5.0357083,151.54,151.49,23.68535716]
[1750036688640,11.8757083,151.55,151.5,5.0357083]
[1750036688839,15.0506715,151.55,151.51,8.2106715]
[1750036689142,6.84,151.55,151.51,8.2106715]
[1750036689736,15.0506715,151.55,151.5,8.2106715]
[1750036690364,8.2106715,151.54,151.5,8.2106715]
[1750036690870,6.84,151.55,151.49,18.64964886]
[1750036691061,6.84,151.55,151.51,8.2106715]
[1750036691262,6.84,151.55,151.52,8.2106715]
[1750036691775,6.4588,151.59,151.54,8.2106715]
[1750036692063,43.7106715,151.58,151.53,8.2106715]
[1750036693860,43.7106715,151.58,151.54,8.2106715]
[1750036694260,43.7106715,151.58,151.53,8.2106715]
[1750036696163,35.5,151.58,151.55,8.2106715]
[1750036696577,35.5,151.58,151.54,8.2106715]
[1750036697174,35.5,151.58,151.5,44.64964886]
[1750036697359,43.7106715,151.58,151.53,8.2106715]
[1750036697662,8.2106715,151.57,151.52,8.2106715]
[1750036698039,8.2106715,151.57,151.53,8.2106715]
[1750036698283,8.2106715,151.57,151.5,44.64964886]
[1750036698584,8.2106715,151.57,151.53,8.2106715]
[1750036699661,28.68,151.56,151.53,8.2106715]
[1750036700987,28.68,151.56,151.54,8.2106715]
[1750036701143,6.82,151.58,151.56,18.64964886]
[1750036701359,6.82,151.58,151.57,26.86032036]
[1750036701563,6.82,151.58,151.56,8.2106715]
[1750036701870,35.5,151.58,151.55,18.64964886]
[1750036702067,43.7106715,151.58,151.53,8.2106715]
[1750036702278,35.5,151.58,151.53,26.86032036]
[1750036702490,43.7106715,151.58,151.53,26.86032036]
[1750036703873,43.7106715,151.58,151.52,27.548]
[1750036703874,8.2106715,151.56,151.52,18.64964886]
[1750036704072,28.68,151.55,151.51,8.2106715]
[1750036704273,28.68,151.55,151.51,26.86032036]
[1750036705388,28.68,151.55,151.52,8.2106715]
[1750036706905,28.68,151.55,151.53,8.2106715]
[1750036709468,28.68,151.55,151.51,18.64964886]
[1750036709690,28.68,151.55,151.52,8.2106715]
[1750036709971,28.68,151.55,151.51,26.86032036]
[1750036710170,28.68,151.55,151.52,8.2106715]
[1750036710488,28.68,151.55,151.51,26.86032036]
[1750036710884,28.68,151.55,151.51,23.68753157]
[1750036711282,28.68,151.55,151.5,26.0]
[1750036711486,5.03788271,151.54,151.49,23.68753157]
[1750036711995,33.71788271,151.55,151.5,5.03788271]
[1750036712985,5.03788271,151.54,151.49,23.68753157]
[1750036713189,33.71788271,151.55,151.5,5.03788271]
[1750036714890,28.68,151.55,151.5,5.03788271]
[1750036715095,33.71788271,151.55,151.5,5.03788271]
[1750036715797,28.68,151.55,151.51,5.03788271]
[1750036716897,11.85788271,151.58,151.53,5.03788271]
[1750036717192,11.85788271,151.58,151.49,25.25062772]
[1750036717193,35.48,151.58,151.56,5.03788271]
[1750036717390,35.48,151.58,151.51,25.17824886]
[1750036717391,35.48,151.58,151.55,5.03788271]
[1750036717800,35.48,151.58,151.51,31.77846716]
[1750036717801,35.48,151.58,151.56,5.03788271]
[1750036717982,35.48,151.58,151.57,5.03788271]
[1750036718484,6.82,151.58,151.57,5.03788271]
[1750036720036,6.82,151.58,151.57,23.68753157]
[1750036722914,6.82,151.58,151.57,23.97185471]
[1750036723423,6.82,151.58,151.57,18.64964886]
[1750036723584,6.82,151.58,151.57,23.68753157]
[1750036724185,6.82,151.58,151.57,5.03788271]
[1750036724693,6.82,151.58,151.57,23.68753157]
[1750036725707,6.82,151.58,151.57,5.03788271]
[1750036726023,6.82,151.58,151.55,5.03788271]
[1750036726224,6.82,151.58,151.54,5.03788271]
[1750036726695,5.03788271,151.57,151.53,23.68753157]
[1750036726897,5.03788271,151.56,151.52,18.64964886]
[1750036727096,28.62,151.55,151.53,5.03788271]
[1750036728336,28.62,151.55,151.51,6.66958271]
[1750036728996,33.65788271,151.55,151.5,26.0]
[1750036729204,33.65788271,151.55,151.5,31.03788271]
[1750036731017,28.62,151.55,151.51,5.03788271]
[1750036731594,28.62,151.55,151.5,26.0]
[1750036731811,28.62,151.55,151.52,5.03788271]
[1750036732312,28.62,151.55,151.51,5.03788271]
[1750036732502,33.65788271,151.55,151.5,31.03788271]
[1750036733817,28.62,151.55,151.5,26.0]
[1750036734029,5.03788271,151.54,151.5,5.03788271]
[1750036734321,5.03788271,151.51,151.47,18.64964886]
[1750036734498,28.62,151.5,151.47,18.64964886]
[1750036734687,33.65788271,151.5,151.45,5.03788271]
[1750036734890,5.03788271,151.47,151.43,1.645]
[1750036735096,5.03788271,151.45,151.4,5.03788271]
[1750036735313,5.03788271,151.45,151.41,18.64964886]
[1750036735488,33.65788271,151.46,151.41,5.03788271]
[1750036735919,28.62,151.46,151.45,5.03788271]
[1750036736110,28.62,151.47,151.46,18.64964886]
[1750036736417,6.8,151.49,151.46,18.64964886]
[1750036736418,6.8,151.49,151.46,5.03788271]
[1750036736599,6.8,151.49,151.47,5.03788271]
[1750036736793,6.8,151.49,151.45,5.03788271]
[1750036738095,5.03788271,151.48,151.44,18.64964886]
[1750036738291,28.62,151.47,151.44,18.64964886]
[1750036738697,28.62,151.47,151.45,5.03788271]
[1750036739100,28.62,151.47,151.46,5.03788271]
[1750036739617,28.62,151.47,151.44,23.68753157]
[1750036739997,28.62,151.47,151.44,18.64964886]
[1750036740193,28.62,151.47,151.44,23.68753157]
[1750036740795,28.62,151.47,151.46,5.03788271]
[1750036741001,28.62,151.47,151.45,5.03788271]
[1750036741329,28.62,151.47,151.44,23.68753157]
[1750036741628,28.62,151.47,151.44,18.64964886]
[1750036741804,28.62,151.47,151.46,5.03788271]
[1750036742394,28.62,151.47,151.44,23.68753157]
[1750036742617,28.62,151.47,151.43,26.0]
[1750036742618,28.62,151.47,151.43,5.03788271]
[1750036743414,28.62,151.47,151.43,18.64964886]
[1750036743603,28.62,151.47,151.46,5.03788271]
[1750036743803,28.62,151.47,151.45,5.03788271]
[1750036744636,28.62,151.47,151.45,18.64964886]
[1750036745930,28.62,151.47,151.45,5.03788271]
[1750036746112,6.8,151.49,151.46,5.03788271]
[1750036746431,6.8,151.49,151.47,5.03788271]
[1750036747734,6.8,151.49,151.48,5.03788271]
[1750036747904,6.8,151.49,151.48,23.68753157]
[1750036750839,6.8,151.49,151.48,30.57338626]
[1750036751025,6.8,151.49,151.48,23.97185471]
[1750036751540,6.8,151.49,151.48,30.57338626]
[1750036753122,6.76,151.57,151.49,18.933972]
[1750036753320,28.6,151.56,151.52,5.03788271]
[1750036753941,28.6,151.56,151.53,5.03788271]
[1750036754159,28.6,151.56,151.54,5.03788271]
[1750036754618,28.6,151.56,151.53,5.03788271]
[1750036756650,28.6,151.56,151.55,5.03788271]
[1750036756849,28.6,151.56,151.54,5.03788271]
[1750036757934,6.76,151.57,151.55,5.03788271]
[1750036758130,6.76,151.57,151.56,5.03788271]
[1750036758334,6.76,151.57,151.55,5.03788271]
[1750036759346,6.76,151.57,151.56,23.68753157]
[1750036759940,6.76,151.57,151.56,18.64964886]
[1750036760148,6.76,151.57,151.56,23.68753157]
[1750036760541,6.76,151.57,151.56,18.64964886]
[1750036761050,6.76,151.57,151.56,23.68753157]
[1750036762460,6.76,151.57,151.54,18.64964886]
[1750036762956,35.34,151.57,151.54,23.68753157]
[1750036763622,35.34,151.57,151.55,5.03788271]
[1750036764442,35.34,151.57,151.54,18.64964886]
[1750036764648,35.34,151.57,151.53,18.64964886]
[1750036764649,40.37788271,151.57,151.53,18.64964886]
[1750036764845,40.37788271,151.57,151.53,23.68753157]
[1750036765229,40.37788271,151.57,151.53,18.64964886]
[1750036765432,40.37788271,151.57,151.53,23.68753157]
[1750036766231,35.34,151.57,151.55,5.03788271]
[1750036768957,35.34,151.57,151.53,18.64964886]
[1750036769253,40.37788271,151.57,151.53,23.68753157]
[1750036769847,6.76,151.57,151.56,18.64964886]
[1750036770162,6.76,151.57,151.56,5.03788271]
[1750036771441,6.76,151.57,151.54,1.5762]
[1750036771757,6.76,151.57,151.56,5.03788271]
[1750036773641,6.76,151.57,151.56,23.68753157]
[1750036774359,6.76,151.57,151.56,29.00973742]
[1750036774734,6.76,151.57,151.56,35.60778439]
[1750036774936,12.85904326,151.62,151.58,0.28432314]
[1750036775143,12.85904326,151.62,151.61,5.03788271]
[1750036781571,12.85904326,151.62,151.6,31.03788271]
[1750036781865,12.85904326,151.62,151.58,31.03788271]
[1750036782069,28.54,151.61,151.57,23.68753157]
[1750036782249,28.54,151.61,151.59,5.03788271]
[1750036783066,28.54,151.61,151.6,5.03788271]
[1750036783273,12.85904326,151.62,151.6,5.03788271]
[1750036783566,12.85904326,151.62,151.57,18.64964886]
[1750036783941,12.85904326,151.62,151.6,5.03788271]
[1750036784555,12.85904326,151.62,151.59,5.03788271]
[1750036789067,5.03788271,151.61,151.57,18.64964886]
[1750036789370,12.85904326,151.62,151.57,23.68753157]
[1750036789573,12.85904326,151.62,151.6,5.03788271]
[1750036792583,12.85904326,151.62,151.6,23.68753157]
[1750036794864,12.85904326,151.62,151.6,18.64964886]
[1750036795675,33.53788271,151.64,151.6,18.64964886]
[1750036795676,33.53788271,151.64,151.6,23.68753157]
[1750036795875,6.76,151.65,151.6,23.68753157]
[1750036796072,28.5,151.64,151.6,23.68753157]
[1750036796589,28.5,151.64,151.61,5.03788271]
[1750036796803,28.5,151.64,151.62,5.03788271]
[1750036796968,6.76,151.65,151.63,5.03788271]
[1750036797171,6.76,151.65,151.64,5.03788271]
[1750036797394,6.76,151.65,151.64,23.68753157]
[1750036799798,6.76,151.65,151.64,18.64964886]
[1750036799973,6.76,151.65,151.64,23.68753157]